Cogmind - Beta 10.1 @@@ ROGUE MODE // 2020.10.11 @ 13:15:18 Player: GammaGradiation Result: Destroyed by Y-45 Defender with Beam Rifle Performance ------------- Evolutions (1) 500 Regions Visited (3) 600 Robots Destroyed (13) 65 Value Destroyed (390) 390 Prototype IDs (1) 20 Alien Tech Used (0) 0 Bonus (60) 60 TOTAL SCORE: 1635 Bonus ------- Follower Combat Kills 71 Friendly Fire -11 Cogmind --------- Core Integrity 0/400 Matter 300/300 Energy 98/100 System Corruption 0% Temperature Cool (10) Movement Treading (160) Location -9/Materials Parts ------- > --- POWER (1) -------- (None) > --- PROPULSION (3) --- Light Treads > --- UTILITY (3) ------ (None) > --- WEAPON (2) ------- (None) > --- INVENTORY (4) ---- Heat Sink Heat Sink Small Storage Unit Peak State ------------ > --- POWER ------------ Ion Engine > --- PROPULSION ------- Light Treads Light Treads Aluminum Leg > --- UTILITY ---------- Small Storage Unit Targeting Computer Light Armor Plating > --- WEAPON ----------- Heavy Assault Rifle > --- INVENTORY -------- Improved Ion Engine Heat Sink Heat Sink [Rating: 9] Favorites ----------- Power Ion Engine Engine Ion Engine Propulsion Aluminum Leg Treads Light Treads Leg Aluminum Leg Utility Small Storage Unit Device Structural Scanner Storage Small Storage Unit Processor Targeting Computer Protection Light Armor Plating Weapon Medium Laser Energy Gun Medium Laser Ballistic Gun Light Assault Rifle Launcher Grenade Launcher Build | -11 -10 -10 -9 ------- Run | Scr Mat Min Mat Slots Evolved 2 | . . . 2 Power . | . . . . Propulsion 1 | . . . 1 Utility 1 | . . . 1 Weapon . | . . . . Parts Attached 30 | 7 2 10 11 Power 2 | 1 . . 1 Engine 2 | 1 . . 1 Core . | . . . . Reactor . | . . . . Propulsion 10 | 2 . 5 3 Treads 4 | . . 3 1 Leg 6 | 2 . 2 2 Wheel . | . . . . Hover . | . . . . Flight . | . . . . Utility 5 | 1 2 . 2 Device 1 | . 1 . . Storage 1 | 1 . . . Processor 1 | . . . 1 Hackware . | . . . . Protection 2 | . 1 . 1 Artifact . | . . . . Weapon 13 | 3 . 5 5 Energy Gun 6 | 2 . 1 3 Energy Cannon . | . . . . Ballistic Gun 5 | 1 . 3 1 Ballistic Cannon . | . . . . Launcher 2 | . . 1 1 Special Weapon . | . . . . Impact Weapon . | . . . . Slashing Weapon . | . . . . Piercing Weapon . | . . . . Special Melee Weapon . | . . . . Unidentified Prototypes 1 | . . . 1 Parts Lost 17 | . . 2 15 Power 2 | . . . 2 Propulsion 5 | . . 1 4 Utility 3 | . . . 3 Weapon 7 | . . 1 6 Highest Loss Streak 12 | . . 2 12 Average Slot Usage (%) 88 | . 94 99 57 Engine 12 | . 14 14 9 Treads 9 | . . 10 12 Leg 15 | . 28 17 4 Device 10 | . 7 14 3 Storage 12 | . 14 14 9 Energy Gun 9 | . 14 12 . Ballistic Gun 13 | . 14 15 10 Naked Turns 7 | . . . 7 Heaviest Build 16 | 13 13 16 15 Greatest Support 40 | 20 20 40 40 Greatest Overweight (x) 3 | 1 . 1 3 Average Overweight (x) . | . . . . Largest Inventory Capacity 6 | 6 6 6 6 Average Capacity 5 | 5 6 6 5 Most Carried 6 | 6 6 6 6 Average Carried 4 | 3 5 5 3 Final Capacity 6 | 6 6 6 4 Final Carried 6 | 6 5 6 3 Class Distribution -------------------- 100% | Mutant Dominant Class ---------------- Mutant | -10/Materials Mutant | -10/Mines Mutant | -9/Materials Resources | -11 -10 -10 -9 ----------- Run | Scr Mat Min Mat Matter Collected 513 | 229 . 156 128 Remotely . | . . . . Salvage Created 373 | . . 222 151 Parts 19 | . . 8 11 Haulers Intercepted . | . . . . Recyclers Shooed . | . . . . Parts Field Recycled . | . . . . Retrieved Matter . | . . . . Parts Self-Destructed . | . . . . Prevented . | . . . . Kills | -11 -10 -10 -9 ------- Run | Scr Mat Min Mat Combat Hostiles Destroyed 13 | . . 6 7 Guns 9 | . . 6 3 AOE 4 | . . . 4 Classes Destroyed 3 | . . 3 . Swarmer 5 | . . 2 3 Grunt 6 | . . 3 3 Sentry 2 | . . 1 1 Best Kill Streak 4 | . . 2 4 Combat Bots Only 4 | . . 2 4 Max Kills in Single Turn 2 | . . 1 2 Gunslinging . | . . . . Exploded 2 | . . . 2 Melee . | . . . . Uniques/NPCs Destroyed . | . . . . Combat | -11 -10 -10 -9 -------- Run | Scr Mat Min Mat Damage Taken 2150 | . . 581 1569 Core 512 | . . 103 409 Absorbed by Shields . | . . . . Core Remaining (%) 79 | 100 . 58 . Volleys Fired 57 | . . 27 30 Largest 2 | . . 2 2 Hottest 73 | . . 73 56 Shots Fired 85 | . . 53 32 Gun 83 | . . 53 30 Cannon . | . . . . Launcher 2 | . . . 2 Special . | . . . . Kinetic 45 | . . 27 18 Thermal 38 | . . 26 12 Explosive 2 | . . . 2 Electromagnetic . | . . . . Robot Hit Streak 24 | . . 5 24 Robot Miss Streak 3 | . . 3 3 Penetration Max . | . . . . Secondary Targets . | . . . . Shots Hit Robots 59 | . . 34 25 Core Hits 27 | . . 14 13 Critical Hits . | . . . . Critical Kills . | . . . . Critical Parts Destroyed . | . . . . Melee Attacks . | . . . . Impact . | . . . . Slashing . | . . . . Piercing . | . . . . Sneak Attacks . | . . . . Combat Hostiles . | . . . . Follow-up Attacks . | . . . . Damage Inflicted 1424 | . . 422 1002 Guns 775 | . . 422 353 Cannons . | . . . . Explosions 644 | . . . 644 Melee . | . . . . Ramming 5 | . . . 5 Kinetic 371 | . . 181 190 Thermal 798 | . . 241 557 Explosive 250 | . . . 250 Electromagnetic . | . . . . Impact . | . . . . Slashing . | . . . . Piercing . | . . . . Highest Corruption . | . . . . Average Corruption . | . . . . Corruption Purged . | . . . . Overload Shots . | . . . . Overflow Damage 131 | . . . 131 Projectiles . | . . . . Explosions 131 | . . . 131 Melee . | . . . . Knockbacks . | . . . . Impact . | . . . . Kinetic . | . . . . Secondary . | . . . . Self-Inflicted Damage 107 | . . . 107 Shots 3 | . . . 3 Rammed 4 | . . . 4 Targets Rammed 5 | . . . 5 Kicked 1 | . . . 1 Crushed . | . . . . Highest Temperature 249 | . . 249 55 Average Temperature 65 | . . 83 15 Received Heat Transfer 723 | . . 219 504 Effects 3 | . . 3 . Interference 3 | . . 3 . Siege Activations . | . . . . Robots Corrupted . | . . . . Combat Hostiles . | . . . . Parts Fried . | . . . . Impact Corruptions . | . . . . Robots Melted . | . . . . Combat Hostiles . | . . . . Parts Melted 2 | . . 1 1 Heat Transferred 1275 | . . 703 572 Parts Sabotaged . | . . . . Parts Stolen . | . . . . Parts Stripped . | . . . . Power Chain Reactions . | . . . . Missiles Intercepted . | . . . . Alert | -11 -10 -10 -9 ------- Run | Scr Mat Min Mat Peak Influence 156 | . . 140 156 Initial 49 | . . . 49 Average 54 | . . 59 88 Maximum Alert Level . | . . . . Low Security (%) 100 | 100 100 100 100 Level 1 . | . . . . Level 2 . | . . . . Level 3 . | . . . . Level 4 . | . . . . Level 5 . | . . . . High Security . | . . . . Max Security . | . . . . Squads Dispatched 1 | . . . 1 Investigation . | . . . . Extermination . | . . . . Reinforcement 1 | . . . 1 Assault . | . . . . Garrison . | . . . . Intercept . | . . . . Construction Impeded . | . . . . Haulers Reinforced . | . . . . Stealth | -11 -10 -10 -9 --------- Run | Scr Mat Min Mat Distress Signals 3 | . . . 3 Communications Jammed . | . . . . Distress Signals . | . . . . Times Spotted 28 | . 2 11 15 Peak Tracking Total 6 | . 4 3 6 Tactical Retreats 2 | . . . 2 Traps | -11 -10 -10 -9 ------- Run | Scr Mat Min Mat Traps Triggered . | . . . . Indirectly . | . . . . Trap Hack Attempts . | . . . . Triggered . | . . . . Disarmed . | . . . . Reprogrammed . | . . . . Reused . | . . . . Traps Extracted . | . . . . Installed . | . . . . Triggered . | . . . . Machines | -11 -10 -10 -9 ---------- Run | Scr Mat Min Mat Machines Disabled 2 | . . . 2 Max in Single Turn 2 | . . . 2 Machines Sabotaged . | . . . . Garrisons Compromised . | . . . . Overloaded Fab Kills . | . . . . Fab Network Shutdowns . | . . . . Hacking | -11 -10 -10 -9 --------- Run | Scr Mat Min Mat Machines Accessed 1 | . 1 . . Terminals 1 | . 1 . . Fabricators . | . . . . Repair Stations . | . . . . Recycling Units . | . . . . Scanalyzers . | . . . . Garrison Access . | . . . . Total Hacks 1 | . 1 . . Successful 1 | . 1 . . Failed . | . . . . Catastrophic . | . . . . Database Lockouts . | . . . . Manual 1 | . 1 . . Terminals 1 | . 1 . . Fabricators . | . . . . Repair Stations . | . . . . Recycling Units . | . . . . Scanalyzers . | . . . . Garrison Access . | . . . . Terminal Hacks . | . . . . Fabricator Hacks . | . . . . Repair Station Hacks . | . . . . Recycling Unit Hacks . | . . . . Scanalyzer . | . . . . Garrison Access Hacks . | . . . . Unauthorized Hacks 1 | . 1 . . Terminals 1 | . 1 . . Track 1 | . 1 . . Fabricators . | . . . . Repair Stations . | . . . . Recycling Units . | . . . . Scanalyzers . | . . . . Garrison Access . | . . . . Data Cores Recovered . | . . . . Used . | . . . . Hacking Detections 1 | . 1 . . Full Trace Events . | . . . . Feedback Events . | . . . . Feedback Blocked . | . . . . Robot Schematics Acquired . | . . . . Robots Built . | . . . . Matter . | . . . . Time . | . . . . Total Robot Build Rating . | . . . . Part Schematics Acquired . | . . . . Parts Built . | . . . . Matter . | . . . . Time . | . . . . Total Part Build Rating . | . . . . Parts Repaired . | . . . . Time . | . . . . Parts Recycled . | . . . . Recycled Matter . | . . . . Retrieved Matter . | . . . . Retrieved Components . | . . . . Parts Scanalyzed . | . . . . Part Schematics Acquired . | . . . . Parts Damaged . | . . . . Bothacking | -11 -10 -10 -9 ------------ Run | Scr Mat Min Mat Used RIF Installer . | . . . . Robots Hacked . | . . . . Non-combat . | . . . . Combat . | . . . . Robot Hacks Applied . | . . . . Relay Couplers Released . | . . . . Robots Rewired . | . . . . Allies Hacked . | . . . . Hacks Repelled . | . . . . Allies | -11 -10 -10 -9 -------- Run | Scr Mat Min Mat Total Allies 2 | . . 2 . Largest Group 2 | . . 2 2 Highest-Rated Group 38 | . . 38 38 Highest-Rated Ally 31 | . . 31 31 Total Orders . | . . . . Ally Attacks 20 | . . 15 5 Total Damage 311 | . . 226 85 Kills 5 | . . 4 1 Allies Corrupted . | . . . . Allies Melted . | . . . . Intel | -11 -10 -10 -9 ------- Run | Scr Mat Min Mat Robot Analysis Total . | . . . . Derelict Logs Recovered 2 | . . 2 . Drone Launches . | . . . . Drone Recoveries . | . . . . Exploration | -11 -10 -10 -9 ------------- Run | Scr Mat Min Mat Turns Passed 1068 | 57 145 622 244 Spaces Moved 648 | 36 116 384 112 Core 33 | 5 . . 28 Treads 188 | . . 114 74 Legs 427 | 31 116 270 10 Wheels . | . . . . Hover . | . . . . Flight . | . . . . Fastest Speed 50 | 50 120 120 50 Average Speed 130 | 114 120 132 138 Slowest Speed 200 | 150 120 160 200 Overloaded Moves . | . . . . Propulsion Burnouts . | . . . . Robots Hopped . | . . . . Cave-ins Triggered . | . . . . Exploration Rate (%) 29 | 3 32 70 13 Regions Visited 3 Branch Regions 1 Pre-discovered Areas . | . . . . Known Exits Taken . | . . . . Unknown Exits Taken 3 | 1 1 1 . Scrap Searched 2 | . . 2 . Spaces Dug . | . . . . Terrain Destroyed 54 | . . . 54 Melee . | . . . . Projectile . | . . . . AOE 54 | . . . 54 Terrain Rammed . | . . . . Walls Destroyed . | . . . . Machines Disabled . | . . . . Actions | -11 -10 -10 -9 --------- Run | Scr Mat Min Mat Total 785 | 48 122 451 164 Wait 18 | . 1 12 5 Move 645 | 35 115 383 112 Hop . | . . . . Pick Up 13 | 5 1 7 . Fast Attach 22 | 7 2 7 6 Attach 6 | . . 2 4 Detach 3 | 1 . 1 1 Swap 2 | . . 1 1 Drop 14 | . 3 11 . Fire 57 | . . 27 30 Melee . | . . . . Ram 1 | . . . 1 Kick 1 | . . . 1 Crush 3 | . . . 3 Escape Stasis . | . . . . Rewire . | . . . . Trap . | . . . . Miscellaneous . | . . . . Route ------- -11/Scrapyard -10/Materials -10/Mines (discovered 2 exits: [*Mat x2]) -9/Materials (discovered 1 exit: [*Sto]) History --------- Turn | Location | Event 20 | -11/Scrapyard | Discovered new exit (range 16) 58 | -11/Scrapyard | Entered Materials 126 | -10/Materials | Discovered new exit (range 13) 203 | -10/Materials | Entered Mines 311 | -10/Mines | Build established: Mutant 366 | -10/Mines | Discovered new exit (range 5) 477 | -10/Mines | Learned Materials emergency access door positions 579 | -10/Mines | Joined a pair of Derelicts in attacking an 0b10 outpost 729 | -10/Mines | Learned Materials emergency access door positions 758 | -10/Mines | Discovered new exit (range 9) 825 | -10/Mines | Entered Materials 825 | -9/Materials | Accompanied by 2 allies 825 | -9/Materials | Evolved 2 slots: Propulsion x1, Utility x1 830 | -9/Materials | Led the pair of lost Derelicts to an unsafe place 941 | -9/Materials | Lost 3 parts (1u2w) 1017 | -9/Materials | Core integrity fell below 50% 1050 | -9/Materials | Core integrity fell below 20% 1066 | -9/Materials | Discovered new exit (range 9) 1069 | -9/Materials | Destroyed by Y-45 Defender with Beam Rifle Last Messages --------------- 01008_ Sml. Laser destroyed. 01008_ Slammed into Y-45 Defender. 01017_ K-01 Serf cleans the Pressure Siphon. 01020_ Imp. Ion Engine destroyed. 01030_ Acquired Prototype Energy Gun. 01030_ Identified Imp. Medium Laser. 01041_ Imp. Ion Engine melted. 01041_ Y-45 Defender destroyed. 01043_ Acquired 40 matter. 01045_ Acquired Lgt. Treads. 01047_ Imp. Medium Laser destroyed. 01048_ Slammed into Y-45 Defender. 01048_ K-01 Serf collects debris. 01051_ Acquired Beam Rifle. 01053_ K-01 Serf collects debris. 01053_ Slammed into K-01 Serf. 01057_ Beam Rifle destroyed. 01058_ Slammed into Y-45 Defender. 01065_ K-01 Serf cleans the Nuclear Reactor. 01066_ EXIT=FOUND Map ----- +----------------------------------------------------+ | ?????????????????????????????????????????????????? | | ?????????????????????????????????????????????????? | | ?????????????????????????????????????????????????? | | ?????????????????????????????????????????????????? | | ?????????????????????????????????????????????????? | | ?????????????????????????????????????????????????? | | ?????????????????????????????????????????????????? | | ?????????????????????????????????????????????????? | | ??????????????+??????????????????????????????????? | | ?????????????????????????????????????????????????? | | ??????????????????????????? ?????????????????????? | | ??????????????????????????" ?????????????????????? | | ?????????????????????????? ?????????????????????? | | ?????????????????????????? ???? ??????????????? | | ?????????????????????????? ??? ??????????????? | | ?????????????????????????? ??? ???????????????? | | ????????????????????????##+### ???????????????? | | ???????????????????????? # ]????????????????? | | ???????????????????????? ?????????????????? | | ???????????????????????? < ??????????????????? | | ???????????????????????? ???????????????????? | | ???????????????????????? ????????????????????? | | ????????????????????????# #????????????????????? | | ????????????????????????#k #????????????????????? | | ????????????????????????#t #????????????????????? | | ???????? #############@ #????????????????????? | | ?????????? #??????????+?????????? | | ????????????######## Y #????????????????????? | | ????????????# # Y""" #????????????????????? | | ????????????# =# """ ###??????????????????? | | ????????????# """%r% """ /??????????????????? | | ????????????# """ # u""" ####?????????????????? | | ????????????# """ # ######???????????????? | | ????????????# # #???????????????? | | ????????????# ! # #???????????????? | | ????????????# # T ?????????????? | | ????????????######## #???????????????? | | ??????????????#######/###### #???????????????? | | ??????????????# """ #???#u ##???????????????? | | ??????????????# "T" #???? #????????????????? | | ????????#?????# #???? ? #????????????????? | | ???###### ##??# #????????????????????????? | | ???# ####+##/#####????????????????????????? | | ???# !!! + % #????????????????????????????? | | ???# !!! # #######????????????????????????????? | | ???# ????# #??????????????????????????????????? | | ???#????????# #######????????????????????????????? | | ????????????# # # ###??????????????????????????? | | ????????????# # ###????????????????????????? | | ????????????# # #????????????????????????? | +----------------------------------------------------+ Best States ------------- Heat Dissipation 28 Energy Generation 12 Energy Capacity 265 Matter Stores 300 Matter Capacity 300 Sight Range 16 Terrain Scan Density 10 Armor Coverage 150 Core Shielding 20 Evasion (%) 50 Targeting Accuracy 5 Recoil Reduction 2 Item Schematics ----------------- None Robot Schematics ------------------ None Fabricated ------------ Nothing Alien Tech Used ----------------- None Achievements -------------- None Challenges ------------ None Game ------ Seed InsulatedDecoderCleaver Manual? 0 Play Time 00:18:03 Cumulative 70.6 hours Start 2020.10.11 @ 12:59:33 End 2020.10.11 @ 13:15:18 Sessions 1 Manual Loads 0 Difficulty Rogue Special Mode None Game No. 59 Rogue 59 Adventurer 0 Explorer 0 Win Type - Total 0 Types 0/0/0/0/0/0/0/0/0 Lore% 50 Gallery% 50 Achievement% 40 Wizard Run 0 Options --------- ASCII 1 Keyboard 1 Movement Numpad Keybinds 0 Fullscreen 1 Font 18/SmallcapsGlow Map View 76x50 Tactical HUD 1 Map Filters NONE Filters NONE Steam 0 RUN: b848fadb-9d2f-42c5-b3ad-ee4b0d270899